Cogmind - Beta 13 @@@ ROGUE MODE // 2024.04.22 @ 23:31:50 Player: Person Guy Result: Destroyed by S-43 Plague with Heavy Machine Gun Performance ------------- Evolutions (7) 3500 Regions Visited (16) 3200 Robots Destroyed (127) 635 Value Destroyed (7081) 7081 Prototype IDs (22) 440 Alien Tech Used (0) 0 Bonus (3990) 3990 TOTAL SCORE: 18846 Bonus ------- High Alert Combat Kills 548 Follower Combat Kills 1765 Entered Garrisons 600 Used RIF Installer 1500 Aligned with FarCom 300 Friendly Fire -723 Cogmind --------- Core Integrity 0/1300 Matter 275/300 Energy 100/100 System Corruption 14% Temperature Cool (0) Movement Core (50) Location -3/Research Parts ------- > --- POWER (2) -------- (None) > --- PROPULSION (4) --- (None) > --- UTILITY (11) ----- System Shield Relay Coupler [NC] (27) Relay Coupler [Sentry] (26) Relay Coupler [Hunter] (18) > --- WEAPON (4) ------- (None) > --- INVENTORY (5) ---- Coolant Network Cloak of Protection Relay Coupler [Heavy] (15) Peak State ------------ > --- POWER ------------ Reinforced Fission Core Light Antimatter Reactor > --- PROPULSION ------- Heavy Treads Heavy Treads > --- UTILITY ---------- Coolant Network Large Storage Unit Advanced Transmission Jammer Improved Medium Armor Plating Graphene Brace Hacking Suite Hacking Suite System Shield System Shield Relay Coupler [Hunter] > --- WEAPON ----------- Advanced Plasma Cannon Enhanced Coil Gun Enhanced Gauss Cannon Advanced Remote Datajack > --- INVENTORY -------- Light Antimatter Reactor Coolant Network Cloak of Protection Relay Coupler [NC] Relay Coupler [NC] Relay Coupler [Grunt] Relay Coupler [Grunt] Relay Coupler [Grunt] Relay Coupler [Sentry] Relay Coupler [Hunter] Relay Coupler [Heavy] Relay Coupler [Heavy] Coil Gun [Rating: 125] Favorites ----------- Power Improved Ion Engine Engine Improved Ion Engine Power Core Reinforced Fission Core Reactor Light Antimatter Reactor Propulsion Light Treads Treads Light Treads Leg Improved Carbon-fiber Leg Flight Unit Q-thruster Utility Hacking Suite Device Improved Cooling System Storage Large Storage Unit Processor Improved Targeting Computer Hackware Hacking Suite Protection Improved Medium Armor Plating Weapon Flak Cannon Energy Gun Heavy Laser Energy Cannon Advanced Plasma Cannon Ballistic Gun Light Assault Rifle Ballistic Cannon Flak Cannon Launcher Rocket Launcher Special Weapon Remote Datajack Build | -11 -10 -10 -9 -9 -9 -8 -8 -8 -8 -8 -7 -6 -5 -4 -4 -3 ------- Run | Yrd Mat Min Mat Min Exi Min Mat Gar Mat Gar Fac Fac Fac Fac Gar Res Slots Evolved 14 | . . . 2 . . . 2 . . . 2 2 2 2 . 2 Power 1 | . . . . . . . . . . . . . . 1 . . Propulsion 2 | . . . . . . . 1 . . . . . . 1 . . Utility 9 | . . . 2 . . . . . . . 2 2 2 . . 1 Weapon 2 | . . . . . . . 1 . . . . . . . . 1 Parts Attached 145 | . 6 1 12 . 3 2 4 5 1 14 8 19 13 2 20 35 Power 11 | . 1 1 1 . . . . . . 1 1 1 2 . 2 1 Engine 3 | . 1 1 1 . . . . . . . . . . . . . Core 6 | . . . . . . . . . . 1 1 1 2 . 1 . Reactor 2 | . . . . . . . . . . . . . . . 1 1 Propulsion 21 | . 2 . 2 . 1 1 2 . . 4 4 1 . . 2 2 Treads 12 | . 2 . 2 . 1 1 2 . . 1 . . . . 2 1 Leg 8 | . . . . . . . . . . 3 4 1 . . . . Wheel . | . . . . . . . . . . . . . . . . . Hover . | . . . . . . . . . . . . . . . . . Flight 1 | . . . . . . . . . . . . . . . . 1 Utility 52 | . 1 . 4 . 2 1 1 2 . 2 1 5 3 2 9 19 Device 19 | . . . . . 2 . . 1 . 1 . 1 . . 7 7 Storage 2 | . 1 . . . . . . 1 . . . . . . . . Processor 1 | . . . 1 . . . . . . . . . . . . . Hackware 25 | . . . 2 . . . . . . 1 1 4 3 2 1 11 Protection 5 | . . . 1 . . 1 1 . . . . . . . 1 1 Artifact . | . . . . . . . . . . . . . . . . . Weapon 61 | . 2 . 5 . . . 1 3 1 7 2 12 8 . 7 13 Energy Gun 6 | . . . . . . . . . . . 1 . 1 . 1 3 Energy Cannon 6 | . . . . . . . . 1 . 2 . . 1 . 1 1 Ballistic Gun 21 | . 2 . 4 . . . 1 1 1 . 1 6 1 . 2 2 Ballistic Cannon 10 | . . . 1 . . . . 1 . 2 . 1 2 . 1 2 Launcher 6 | . . . . . . . . . . 3 . 1 1 . 1 . Special Weapon 12 | . . . . . . . . . . . . 4 2 . 1 5 Impact Weapon . | . . . . . . . . . . . . . . . . . Slashing Weapon . | . . . . . . . . . . . . . . . . . Piercing Weapon . | . . . . . . . . . . . . . . . . . Special Melee Weapon . | . . . . . . . . . . . . . . . . . Unidentified Prototypes 7 | . . . . . 2 . . . 1 . . . . . . 4 Parts Lost 35 | . 3 . 1 . . . . 1 . 5 . . 5 . 1 19 Power 3 | . . . . . . . . . . 1 . . . . . 2 Propulsion 9 | . 2 . . . . . . . . 3 . . . . 1 3 Utility 13 | . . . 1 . . . . 1 . 1 . . 2 . . 8 Weapon 10 | . 1 . . . . . . . . . . . 3 . . 6 Highest Loss Streak 10 | . 2 . 1 . . . . 1 . 5 . . 4 . 1 10 To Critical Strikes 1 | . . . . . . . . . . . . . 1 . . . Average Slot Usage (%) 87 | . 84 85 83 100 94 98 98 97 100 92 91 89 85 73 84 80 Engine 5 | . 14 14 11 11 11 11 9 9 9 2 . . . . . . Core 2 | . . . . . . . . . . 6 7 6 5 5 5 2 Treads 12 | . 12 28 22 22 22 22 25 27 27 8 . . . . 8 7 Leg 7 | . 15 . . . . . . . . 17 23 20 17 15 2 . Device 7 | . . . . . . . . 6 9 8 7 6 5 5 20 15 Storage 8 | . 14 14 11 11 11 11 9 9 9 9 7 6 5 5 5 3 Hackware 18 | . . . 12 22 22 22 18 18 18 12 22 29 33 26 17 24 Protection 1 | . . . 1 . . 9 8 . . . . . . . 4 2 Energy Cannon 1 | . . . . . . . . 6 9 4 . . . . 3 3 Ballistic Gun 12 | . 28 28 21 11 11 11 18 9 12 12 1 11 4 . 4 4 Ballistic Cannon 5 | . . . . 11 11 11 9 10 5 6 13 5 5 5 4 3 Naked Turns . | . . . . . . . . . . . . . . . . . Heaviest Build 93 | 10 28 28 36 36 36 39 41 48 48 45 40 46 58 52 93 92 Greatest Support 140 | 20 40 40 40 40 40 40 60 60 60 60 56 58 58 58 140 140 Greatest Overweight (x) 12 | . 1 . . . . . 1 . . 12 . . . . 1 . Average Overweight (x) . | . . . . . . . . . . . . . . . . . Largest Inventory Capacity 15 | 8 15 15 15 15 15 15 15 15 15 15 15 15 15 15 15 15 Average Capacity 14 | 8 14 15 15 15 15 15 15 15 15 15 15 15 15 15 15 14 Most Carried 15 | 6 13 12 15 13 14 12 13 14 13 14 15 15 11 11 15 15 Average Carried 11 | 5 7 10 11 13 12 11 10 11 12 12 13 12 10 10 12 12 Final Capacity 15 | 8 15 15 15 15 15 15 15 15 15 15 15 15 15 15 15 5 Final Carried 15 | 3 11 11 13 13 11 11 12 12 12 14 13 10 10 11 15 4 Class Distribution -------------------- 22% | Bothacker-Skirmisher 16% | Bothacker-Tank 16% | Mutant 14% | Scavenger-Skirmisher 11% | Hacker-Skirmisher 9% | Scavenger-Mutant 4% | Hacker-Mutant Dominant Class ---------------- Mutant | -10/Materials Mutant | -10/Mines Scavenger-Mutant | -9/Materials Hacker-Mutant | -9/Mines Hacker-Mutant | -9/Exiles Scavenger-Mutant | -8/Mines Scavenger-Skirmisher | -8/Materials Scavenger-Skirmisher | -8/Garrison Scavenger-Skirmisher | -8/Materials Bothacker-Skirmisher | -8/Garrison Bothacker-Skirmisher | -7/Factory Bothacker-Skirmisher | -6/Factory Hacker-Skirmisher | -5/Factory Bothacker-Skirmisher | -4/Factory Bothacker-Tank | -4/Garrison Bothacker-Tank | -3/Research Resources | -11 -10 -10 -9 -9 -9 -8 -8 -8 -8 -8 -7 -6 -5 -4 -4 -3 ----------- Run | Yrd Mat Min Mat Min Exi Min Mat Gar Mat Gar Fac Fac Fac Fac Gar Res Matter Collected 4556 | 200 157 26 430 . . 81 289 41 . 514 349 424 258 210 746 831 Remotely . | . . . . . . . . . . . . . . . . . Salvage Created 4956 | . 588 . 826 . . 121 366 . . 635 94 284 308 55 680 999 Parts 275 | . 37 . 52 . . 7 26 . . 47 6 16 22 1 23 38 Haulers Intercepted 2 | . . . . . . . . . . . . 1 . . . 1 Recyclers Shooed . | . . . . . . . . . . . . . . . . . Parts Field Recycled . | . . . . . . . . . . . . . . . . . Retrieved Matter . | . . . . . . . . . . . . . . . . . Parts Self-Destructed . | . . . . . . . . . . . . . . . . . Prevented . | . . . . . . . . . . . . . . . . . Kills | -11 -10 -10 -9 -9 -9 -8 -8 -8 -8 -8 -7 -6 -5 -4 -4 -3 ------- Run | Yrd Mat Min Mat Min Exi Min Mat Gar Mat Gar Fac Fac Fac Fac Gar Res Combat Hostiles Destroyed 112 | . 16 . 20 . . 3 10 . . 21 3 6 8 1 13 11 Melee 1 | . . . . . . . . . . . . . . . . 1 Guns 59 | . 16 . 20 . . 1 3 . . 6 1 1 . 1 8 2 Cannons 31 | . . . . . . 2 7 . . 4 2 1 5 . 4 6 AOE 19 | . . . . . . . . . . 11 . 4 3 . 1 . Classes Destroyed 17 | . 4 . 3 . . . 3 . . 1 . 3 2 . 1 . Worker 2 | . . . 1 . . . . . . . . 1 . . . . Builder 1 | . . . . . . . . . . . . . 1 . . . Tunneler 1 | . . . . . . . . . . . . 1 . . . . Hauler 2 | . . . . . . . . . . . . 1 . . . 1 Recycler 2 | . 1 . . . . . . . . . . . . . . 1 Mechanic 1 | . . . . . . . . . . . . 1 . . . . Operator 3 | . 2 . 1 . . . . . . . . . . . . . Watcher 1 | . . . . . . . 1 . . . . . . . . . Swarmer 28 | . 9 . 3 . . . . . . 8 . 4 2 . 2 . Cutter 1 | . . . . . . . . . . . . . . . 1 . Grunt 48 | . 7 . 10 . . 2 6 . . 7 1 . . 1 8 6 Brawler 5 | . . . 2 . . 1 . . . 1 . . . . 1 . Duelist 2 | . . . . . . . 1 . . . . . . . 1 . Sentry 11 | . . . 5 . . . 2 . . 4 . . . . . . Specialist 2 | . . . . . . . . . . . . . 2 . . . Hunter 7 | . . . . . . . 1 . . . 2 2 2 . . . Programmer 9 | . . . . . . . . . . 2 . . 2 . . 5 Guerrilla 1 | . . . . . . . . . . . . . . . . 1 Best Kill Streak 9 | . 4 . 5 . . 3 5 . . 9 2 6 3 1 3 3 Combat Bots Only 9 | . 3 . 5 . . 3 5 . . 9 2 4 2 1 3 3 Max Kills in Single Turn 3 | . 1 . 1 . . 1 1 . . 3 1 3 2 1 1 1 Gunslinging . | . . . . . . . . . . . . . . . . . Exploded 3 | . . . . . . . . . . 3 . 3 1 . 1 . Melee 1 | . . . . . . . . . . . . . . . . 1 Uniques/NPCs Destroyed . | . . . . . . . . . . . . . . . . . Combat | -11 -10 -10 -9 -9 -9 -8 -8 -8 -8 -8 -7 -6 -5 -4 -4 -3 -------- Run | Yrd Mat Min Mat Min Exi Min Mat Gar Mat Gar Fac Fac Fac Fac Gar Res Hostile Shots Fired 689 | . 80 . 92 . . 5 25 . . 91 6 15 68 . 76 231 Missed 203 | . 16 . 22 . . 1 5 . . 26 . 4 22 . 28 79 Damage Taken 9088 | . 580 . 904 . . 66 337 63 . 1040 103 225 892 22 1047 3809 Core 1928 | . 140 . 155 . . . 32 . . 65 33 28 74 . 92 1309 Absorbed by Shields . | . . . . . . . . . . . . . . . . . Reduced by Siege Mode 34 | . . . . . . . . . . . . . . . 34 . Regen/Repaired (Parts) 468 | . . . . . . . . . . . . . . . . 468 Core Remaining (%) 82 | 100 . 44 . . . 61 . . . 82 95 96 92 . 92 . Volleys Fired 394 | . 55 . 63 . . 7 24 10 1 51 9 21 22 15 71 45 Largest 4 | . 2 . 2 . . 2 3 2 3 3 3 3 3 2 3 4 Hottest 273 | . 40 . 46 . . 67 87 109 134 134 152 116 185 128 190 273 Shots Fired 853 | . 109 . 126 . . 14 72 13 3 99 27 53 49 16 156 116 Gun 539 | . 109 . 126 . . 7 48 4 2 52 11 31 21 1 90 37 Cannon 256 | . . . . . . 7 24 9 1 31 16 16 22 1 62 67 Launcher 25 | . . . . . . . . . . 16 . 2 4 . 3 . Special 33 | . . . . . . . . . . . . 4 2 14 1 12 Kinetic 643 | . 109 . 126 . . 14 72 10 2 59 18 47 37 1 82 66 Thermal 124 | . . . . . . . . . . . 9 . 6 1 70 38 Explosive 25 | . . . . . . . . . . 16 . 2 4 . 3 . Electromagnetic 28 | . . . . . . . . 3 1 24 . . . . . . Robot Hit Streak 15 | . 7 . 15 . . 8 8 . . 11 8 8 7 4 8 13 Robot Miss Streak 10 | . 3 . 2 . . 3 6 . . 4 4 5 10 4 4 4 Penetration Max 1 | . . . . . . . . . . 1 . 1 . . 1 1 Secondary Targets 3 | . 1 . 2 . . . . . . . . . . . . . Max Gunslinging Chain 1 | . 1 . 1 . . . . . . . . . . . . . Shots Hit Robots 516 | . 70 . 99 . . 11 52 . . 42 19 35 34 8 77 69 Core Hits 296 | . 32 . 41 . . 10 43 . . 41 10 29 25 1 38 26 Critical Kills 6 | . 1 . 1 . . . . . . 1 . 1 . . . 2 Critical Parts Destroyed 7 | . . . . . . 1 . . . 1 . 2 . . 1 2 Critical Strikes 18 | . 1 . 1 . . 1 . . . 3 . 3 . . 3 6 Burn 2 | . . . . . . . . . . . . . . . 2 . Meltdown 2 | . . . . . . . . . . . . . . . . 2 Destroy 11 | . 1 . 1 . . 1 . . . 2 . 3 . . 1 2 Blast 2 | . . . . . . . . . . . . . . . . 2 Corrupt 1 | . . . . . . . . . . 1 . . . . . . Melee Attacks . | . . . . . . . . . . . . . . . . . Impact . | . . . . . . . . . . . . . . . . . Slashing . | . . . . . . . . . . . . . . . . . Piercing . | . . . . . . . . . . . . . . . . . Sneak Attacks . | . . . . . . . . . . . . . . . . . Combat Hostiles . | . . . . . . . . . . . . . . . . . Follow-up Attacks . | . . . . . . . . . . . . . . . . . Damage Inflicted 12577 | . 648 . 1332 . . 207 998 . . 2070 306 1021 1115 27 2431 2422 Guns 5905 | . 630 . 1312 . . 77 460 . . 560 90 411 218 27 1451 669 Cannons 4222 | . . . . . . 130 521 . . 291 216 286 354 . 728 1696 Explosions 2306 | . . . . . . . . . . 1219 . 311 524 . 252 . Melee . | . . . . . . . . . . . . . . . . . Ramming 144 | . 18 . 20 . . . 17 . . . . 13 19 . . 57 Kinetic 8202 | . 630 . 1312 . . 207 981 . . 688 232 697 478 . 1487 1490 Thermal 1863 | . . . . . . . . . . 101 74 . 94 27 692 875 Explosive 2205 | . . . . . . . . . . 1118 . 311 524 . 252 . Electromagnetic 163 | . . . . . . . . . . 163 . . . . . . Impact . | . . . . . . . . . . . . . . . . . Slashing . | . . . . . . . . . . . . . . . . . Piercing . | . . . . . . . . . . . . . . . . . Highest Corruption 14 | . . . . . . . . . . 2 . . . . . 14 Average Corruption 3 | . . . . . . . . . . 1 . . . . . 5 Corruption Purged . | . . . . . . . . . . . . . . . . . Corruption Blocked . | . . . . . . . . . . . . . . . . . Effects 41 | . . . . . . . . . . 12 . . . . . 29 Message Errors 6 | . . . . . . . . . . 3 . . . . . 3 Matter Fused 15 | . . . . . . . . . . 2 . . . . . 13 Heat Flow Errors 4 | . . . . . . . . . . 3 . . . . . 1 Energy Discharges 3 | . . . . . . . . . . 1 . . . . . 2 Parts Rejected 2 | . . . . . . . . . . . . . . . . 2 Parts Fused 1 | . . . . . . . . . . 1 . . . . . . Data Loss (minor) 2 | . . . . . . . . . . . . . . . . 2 Data Loss (major) 4 | . . . . . . . . . . 1 . . . . . 3 Misfires 1 | . . . . . . . . . . . . . . . . 1 Alerts 2 | . . . . . . . . . . . . . . . . 2 Weapon Failures 1 | . . . . . . . . . . 1 . . . . . . Overload Shots . | . . . . . . . . . . . . . . . . . Overflow Damage 97 | . . . . . . . . . . 35 . . 30 . . 32 Projectiles 32 | . . . . . . . . . . . . . . . . 32 Explosions 65 | . . . . . . . . . . 35 . . 30 . . . Melee . | . . . . . . . . . . . . . . . . . Knockbacks 53 | . . . . . . 2 23 . . 1 6 2 7 . 4 8 Impact . | . . . . . . . . . . . . . . . . . Kinetic 52 | . . . . . . 2 23 . . 1 6 2 7 . 4 7 Secondary 1 | . . . . . . . . . . . . . . . . 1 Self-Inflicted Damage 247 | . . . . . . . . . . 132 . . 86 . 15 14 Shots 8 | . . . . . . . . . . 5 . . 2 . 1 . Rammed 16 | . 1 . 2 . . . 1 . . . . . . . . 12 Targets Rammed 26 | . 6 . 2 . . . 1 . . . . 2 2 . . 13 Kicked 9 | . 5 . . . . . . . . . . 2 2 . . . Crushed 1 | . . . . . . . . . . . . . . . . 1 Highest Temperature 219 | . 12 . 16 . . 18 152 . 22 173 30 . 24 . 52 219 Average Temperature 31 | . 7 . 5 . . 10 46 . 16 46 10 . 13 . 14 51 Received Heat Transfer 1491 | . 114 . 330 . . 27 108 . . 342 36 9 9 . 156 360 Siege Activations 2 | . . . . . . . . . . . . . . . 2 . Total Turns 24 | . . . . . . . . . . . . . . . 24 . Longest Duration 13 | . . . . . . . . . . . . . . . 13 . Robots Corrupted . | . . . . . . . . . . . . . . . . . Combat Hostiles . | . . . . . . . . . . . . . . . . . Parts Fried . | . . . . . . . . . . . . . . . . . Impact Corruptions . | . . . . . . . . . . . . . . . . . Robots Melted 2 | . . . . . . . . . . . . . . . . 2 Combat Hostiles 2 | . . . . . . . . . . . . . . . . 2 Parts Melted 13 | . . . . . . . . . . . . . . 1 2 10 Heat Transferred 2800 | . . . . . . . . . . 123 148 . 124 37 1131 1237 Parts Sabotaged 2 | . . . . . . . . . . . . . . . . 2 Parts Stolen . | . . . . . . . . . . . . . . . . . Parts Stripped . | . . . . . . . . . . . . . . . . . Power Chain Reactions 1 | . . . . . . . . . . 1 . . . . . . Alert | -11 -10 -10 -9 -9 -9 -8 -8 -8 -8 -8 -7 -6 -5 -4 -4 -3 ------- Run | Yrd Mat Min Mat Min Exi Min Mat Gar Mat Gar Fac Fac Fac Fac Gar Res Peak Influence 1248 | . 331 . 306 85 . 70 209 674 328 614 359 256 335 308 1248 751 Initial 702 | . . . . 85 . . 27 137 328 39 322 156 22 158 215 702 Average 322 | . 140 . 140 85 . 66 74 379 222 346 298 129 95 195 815 653 Maximum Alert Level 4 | . 1 . 1 . . . 1 2 1 2 1 1 1 1 4 3 Low Security (%) 49 | 100 74 100 85 100 . 100 96 4 55 32 3 96 87 68 . . Level 1 18 | . 25 . 14 . . . 3 57 44 1 96 3 12 31 14 . Level 2 17 | . . . . . . . . 37 . 65 . . . . 17 54 Level 3 12 | . . . . . . . . . . . . . . . 49 45 Level 4 2 | . . . . . . . . . . . . . . . 18 . Level 5 . | . . . . . . . . . . . . . . . . . High Security . | . . . . . . . . . . . . . . . . . Max Security . | . . . . . . . . . . . . . . . . . Squads Dispatched 34 | . 4 . 3 . . . 1 . . . 4 2 5 4 . 11 Investigation 7 | . . . 2 . . . . . . . 2 1 1 1 . . Extermination 7 | . . . . . . . . . . . 1 1 1 . . 4 Reinforcement 13 | . 4 . 1 . . . . . . . 1 . 3 . . 4 Assault 3 | . . . . . . . . . . . . . . . . 3 Garrison 4 | . . . . . . . 1 . . . . . . 3 . . Intercept . | . . . . . . . . . . . . . . . . . Searches Triggered . | . . . . . . . . . . . . . . . . . Construction Impeded . | . . . . . . . . . . . . . . . . . Haulers Reinforced 3 | . . . . . . . . . . . . . 1 . . 2 Active Scanning Responses . | . . . . . . . . . . . . . . . . . Cargo Convoy Interrupts 1 | . . . . . . . . . . . . . 1 . . . Stealth | -11 -10 -10 -9 -9 -9 -8 -8 -8 -8 -8 -7 -6 -5 -4 -4 -3 --------- Run | Yrd Mat Min Mat Min Exi Min Mat Gar Mat Gar Fac Fac Fac Fac Gar Res Distress Signals 14 | . 1 . 5 . . . 5 . . . . . 1 . . 2 Communications Jammed 26 | . . . . . . . . . . . . . . . . 26 Distress Signals 24 | . . . . . . . . . . . . . . . . 24 Times Spotted 263 | . 34 . 35 . . 3 20 . . 22 7 14 17 9 21 81 Peak Tracking Total 18 | . 5 . 6 . . 3 7 . . 7 2 5 5 4 5 18 Tactical Retreats 12 | . 3 . 2 . . . 1 . . . . . 1 . . 5 Traps | -11 -10 -10 -9 -9 -9 -8 -8 -8 -8 -8 -7 -6 -5 -4 -4 -3 ------- Run | Yrd Mat Min Mat Min Exi Min Mat Gar Mat Gar Fac Fac Fac Fac Gar Res Traps Triggered 10 | . . . 2 . . . . 1 . 2 1 . . 1 2 1 Indirectly . | . . . . . . . . . . . . . . . . . Trap Hack Attempts . | . . . . . . . . . . . . . . . . . Triggered . | . . . . . . . . . . . . . . . . . Disarmed . | . . . . . . . . . . . . . . . . . Reprogrammed . | . . . . . . . . . . . . . . . . . Reused . | . . . . . . . . . . . . . . . . . Traps Extracted . | . . . . . . . . . . . . . . . . . Installed . | . . . . . . . . . . . . . . . . . Triggered 2 | . . . . . . . . . . . . . 2 . . . Most Traps Carried 3 | . . . . . . . . 3 . . . . . . . . Machines | -11 -10 -10 -9 -9 -9 -8 -8 -8 -8 -8 -7 -6 -5 -4 -4 -3 ---------- Run | Yrd Mat Min Mat Min Exi Min Mat Gar Mat Gar Fac Fac Fac Fac Gar Res Machines Disabled 25 | . . . . . . . . 5 . 3 1 1 3 2 7 3 Max in Single Turn 1 | . . . . . . . . 1 . 1 1 1 1 . 1 1 Garrison Access 4 | . . . . . . . . . . . 1 1 1 . . 1 Garrison Relay 10 | . . . . . . . . 4 . 1 . . . . 5 . Machines Repaired . | . . . . . . . . . . . . . . . . . Machines Dismantled . | . . . . . . . . . . . . . . . . . Machines Sabotaged . | . . . . . . . . . . . . . . . . . Overloaded Fab Kills . | . . . . . . . . . . . . . . . . . Hacking | -11 -10 -10 -9 -9 -9 -8 -8 -8 -8 -8 -7 -6 -5 -4 -4 -3 --------- Run | Yrd Mat Min Mat Min Exi Min Mat Gar Mat Gar Fac Fac Fac Fac Gar Res Machines Accessed 43 | . 5 1 5 . . . 6 3 3 1 5 4 4 1 2 3 Terminals 32 | . 5 1 4 . . . 5 3 2 1 3 2 3 . 2 1 Fabricators 1 | . . . . . . . . . . . . 1 . . . . Repair Stations 1 | . . . . . . . . . . . . . . . . 1 Recycling Units 1 | . . . . . . . . . . . 1 . . . . . Scanalyzers 1 | . . . 1 . . . . . . . . . . . . . Garrison Access 7 | . . . . . . . 1 . 1 . 1 1 1 1 . 1 Total Hacks 96 | . 18 1 14 . . . 13 3 6 3 11 9 6 1 2 9 Successful 61 | . 7 . 8 . . . 10 3 5 1 6 7 4 1 2 7 Failed 34 | . 10 1 6 . . . 3 . 1 2 5 2 2 . . 2 Catastrophic 2 | . 1 . . . . . . . . . . . 1 . . . Database Lockouts 1 | . 1 . . . . . . . . . . . . . . . Manual 39 | . 12 . 8 . 1 . 8 . 4 . 3 2 1 . . . Terminals 78 | . 18 1 12 . . . 12 3 5 3 7 6 5 . 2 4 Fabricators 2 | . . . . . . . . . . . . 2 . . . . Repair Stations 4 | . . . . . . . . . . . . . . . . 4 Recycling Units 3 | . . . . . . . . . . . 3 . . . . . Scanalyzers 2 | . . . 2 . . . . . . . . . . . . . Garrison Access 7 | . . . . . . . 1 . 1 . 1 1 1 1 . 1 Terminal Hacks 38 | . 6 . 4 . . . 7 3 4 1 2 4 3 . 2 2 Robot Schematic 1 | . . . . . . . 1 . . . . . . . . . Robot Analysis 1 | . . . . . . . . . . . . . 1 . . . Prototype ID Bank 8 | . 2 . 2 . . . 2 . . . 1 1 . . . . Open Door 2 | . . . . . . . . . . 1 . . . . 1 . Level Access Points 3 | . . . . . . . . . 1 . . 1 1 . . . Emergency Access Points 2 | . . . . . . . . 1 . . . . . . 1 . Machine Index 1 | . . . . . . . 1 . . . . . . . . . Terminal Index 1 | . . . . . . . . . . . 1 . . . . . Scanalyzer Index 1 | . . . 1 . . . . . . . . . . . . . Alert Level 6 | . 2 . 1 . . . 2 . 1 . . . . . . . Unreport Threat 5 | . 1 . . . . . . . 2 . . . . . . 2 Locate Traps 1 | . 1 . . . . . . . . . . . . . . . Registered Components 3 | . . . . . . . 1 . . . . 1 1 . . . Zone Layout 1 | . . . . . . . . . . . . 1 . . . . Garrison Registry 1 | . . . . . . . . 1 . . . . . . . . Security Stations 1 | . . . . . . . . 1 . . . . . . . . Fabricator Hacks 2 | . . . . . . . . . . . . 2 . . . . Load Schematic 1 | . . . . . . . . . . . . 1 . . . . Build 1 | . . . . . . . . . . . . 1 . . . . Repair Station Hacks 4 | . . . . . . . . . . . . . . . . 4 Scan Component 2 | . . . . . . . . . . . . . . . . 2 Repair 2 | . . . . . . . . . . . . . . . . 2 Recycling Unit Hacks 3 | . . . . . . . . . . . 3 . . . . . Process 1 | . . . . . . . . . . . 1 . . . . . Report Inventory 1 | . . . . . . . . . . . 1 . . . . . Retrieve Matter 1 | . . . . . . . . . . . 1 . . . . . Scanalyzer 2 | . . . 2 . . . . . . . . . . . . . Insert Component 1 | . . . 1 . . . . . . . . . . . . . Analyze 1 | . . . 1 . . . . . . . . . . . . . Garrison Access Hacks 7 | . . . . . . . 1 . 1 . 1 1 1 1 . 1 Unlock Access 3 | . . . . . . . 1 . 1 . . . . 1 . . Seal Access 4 | . . . . . . . . . . . 1 1 1 . . 1 Unauthorized Hacks 5 | . 1 . 2 . . . 2 . . . . . . . . . Terminals 5 | . 1 . 2 . . . 2 . . . . . . . . . Track 1 | . . . . . . . 1 . . . . . . . . . Assimilate 1 | . . . . . . . 1 . . . . . . . . . Botnet 1 | . . . 1 . . . . . . . . . . . . . Operators 2 | . 1 . 1 . . . . . . . . . . . . . Fabricators . | . . . . . . . . . . . . . . . . . Repair Stations . | . . . . . . . . . . . . . . . . . Recycling Units . | . . . . . . . . . . . . . . . . . Scanalyzers . | . . . . . . . . . . . . . . . . . Garrison Access . | . . . . . . . . . . . . . . . . . Data Cores Recovered . | . . . . . . . . . . . . . . . . . Used . | . . . . . . . . . . . . . . . . . Hacking Detections 30 | . 5 . 4 . . . 5 2 2 1 3 2 3 . 1 2 Full Trace Events 2 | . . . . . . . . . . . 1 1 . . . . Feedback Events . | . . . . . . . . . . . . . . . . . Feedback Blocked . | . . . . . . . . . . . . . . . . . Robot Schematics Acquired 1 | . . . . . . . 1 . . . . . . . . . Robots Built . | . . . . . . . . . . . . . . . . . Authchips . | . . . . . . . . . . . . . . . . . Time . | . . . . . . . . . . . . . . . . . Total Robot Build Rating . | . . . . . . . . . . . . . . . . . Part Schematics Acquired 1 | . . . 1 . . . . . . . . . . . . . Parts Built 1 | . . . . . . . . . . . . 1 . . . . Authchips . | . . . . . . . . . . . . . . . . . Time 73 | . . . . . . . . . . . . 73 . . . . Total Part Build Rating 3 | . . . . . . . . . . . . 3 . . . . Parts Repaired 2 | . . . . . . . . . . . . . . . . 2 Time 100 | . . . . . . . . . . . . . . . . 100 Parts Recycled . | . . . . . . . . . . . . . . . . . Recycled Matter 29 | . . . . . . . . . . . 29 . . . . . Retrieved Matter 29 | . . . . . . . . . . . 29 . . . . . Retrieved Components . | . . . . . . . . . . . . . . . . . Parts Scanalyzed 1 | . . . 1 . . . . . . . . . . . . . Part Schematics Acquired 1 | . . . 1 . . . . . . . . . . . . . Parts Damaged . | . . . . . . . . . . . . . . . . . Bothacking | -11 -10 -10 -9 -9 -9 -8 -8 -8 -8 -8 -7 -6 -5 -4 -4 -3 ------------ Run | Yrd Mat Min Mat Min Exi Min Mat Gar Mat Gar Fac Fac Fac Fac Gar Res Used RIF Installer 3 | . . . . . . . . 1 . 1 . . . . 1 . Robot Detection 1 | . . . . . . . . . . . . . . . 1 . Program Shield 1 | . . . . . . . . . . 1 . . . . . . Robots Hacked 23 | . . . . . . . . . . . . 4 2 4 1 12 Non-combat . | . . . . . . . . . . . . . . . . . Combat 23 | . . . . . . . . . . . . 4 2 4 1 12 Robot Hacks Applied 25 | . . . . . . . . . . . . 4 2 6 1 12 go_dormant 1 | . . . . . . . . . . . . . . . . 1 overwrite_iff 8 | . . . . . . . . . . . . 1 . 2 . 5 formatsys_high 16 | . . . . . . . . . . . . 3 2 4 1 6 Relay Couplers Released 43 | . . . . . . . . 17 . 5 . . . . 21 . Machine Destruction 43 | . . . . . . . . 17 . 5 . . . . 21 . Attached 18 | . . . . . . . . . . . . 3 2 2 1 10 Fabnet Peak Effective % . | . . . . . . . . . . . . . . . . . Robots Rewired 6 | . . . . . . . . 4 . . . . . . 2 . Allies Hacked 1 | . . . . . . . . . . . . . . . . 1 Hacks Repelled . | . . . . . . . . . . . . . . . . . Allies | -11 -10 -10 -9 -9 -9 -8 -8 -8 -8 -8 -7 -6 -5 -4 -4 -3 -------- Run | Yrd Mat Min Mat Min Exi Min Mat Gar Mat Gar Fac Fac Fac Fac Gar Res Total Allies 33 | . . . . . . . 1 4 . 1 . 4 2 4 6 11 Largest Group 5 | . . . . . . . 1 4 4 4 1 3 2 5 5 5 Highest-Rated Group 408 | . . . . . . . 26 56 56 56 39 97 137 318 406 408 Highest-Rated Ally 137 | . . . . . . . 26 21 21 39 39 39 137 137 131 137 Total Orders . | . . . . . . . . . . . . . . . . . Ally Attacks 247 | . . . . . . . . . 6 9 9 29 16 24 47 107 Total Damage 8072 | . . . . . . . . . 78 101 113 436 552 1132 1736 3924 Kills 48 | . . . . . . . . . 1 1 3 3 4 3 10 23 Allies Corrupted 1 | . . . . . . . . . . . . . . . . 1 Allies Melted . | . . . . . . . . . . . . . . . . . Intel | -11 -10 -10 -9 -9 -9 -8 -8 -8 -8 -8 -7 -6 -5 -4 -4 -3 ------- Run | Yrd Mat Min Mat Min Exi Min Mat Gar Mat Gar Fac Fac Fac Fac Gar Res Robot Analysis Total 1 | . . . . . . . . . . . . . 1 . . . Derelict Logs Recovered 1 | . . 1 . . . . . . . . . . . . . . Drone Launches . | . . . . . . . . . . . . . . . . . Drone Recoveries . | . . . . . . . . . . . . . . . . . Exploration | -11 -10 -10 -9 -9 -9 -8 -8 -8 -8 -8 -7 -6 -5 -4 -4 -3 ------------- Run | Yrd Mat Min Mat Min Exi Min Mat Gar Mat Gar Fac Fac Fac Fac Gar Res Turns Passed 13381 | 7 1325 515 1419 50 366 314 796 956 149 942 681 1007 1187 235 1641 1791 Spaces Moved 7141 | 5 621 289 708 32 224 174 307 548 84 510 511 617 640 166 755 950 Core 186 | . . . . . . . . . . 2 . . . . . 184 Treads 4194 | . 340 289 708 32 224 174 307 548 84 117 . . . . 624 747 Legs 2742 | 5 281 . . . . . . . . 391 511 617 640 166 131 . Wheels . | . . . . . . . . . . . . . . . . . Hover . | . . . . . . . . . . . . . . . . . Flight 19 | . . . . . . . . . . . . . . . . 19 Fastest Speed 40 | 120 120 160 160 160 160 160 160 160 160 120 120 123 123 123 123 40 Average Speed 146 | 120 167 160 160 160 160 160 165 160 160 147 120 123 123 123 154 136 Slowest Speed 650 | 120 190 160 160 160 160 160 240 160 160 650 123 123 123 123 195 160 Overloaded Moves . | . . . . . . . . . . . . . . . . . Propulsion Burnouts . | . . . . . . . . . . . . . . . . . Robots Hopped 5 | . . . . . . . . . . . . . . . . 5 Cave-ins Triggered . | . . . . . . . . . . . . . . . . . Exploration Rate (%) 40 | 1 89 66 54 12 62 53 30 73 11 66 15 16 19 4 86 25 Regions Visited 16 Branch Regions 4 Pre-discovered Areas . | . . . . . . . . . . . . . . . . . Known Exits Taken 5 | . . . . . . . 1 . 1 . . 1 1 1 . . Unknown Exits Taken 8 | 1 1 1 1 1 1 1 . . . . 1 . . . . . Scrap Searched 1 | . . 1 . . . . . . . . . . . . . . Spaces Dug 42 | . . . . . . . . . . 42 . . . . . . Terrain Destroyed 200 | . . . . . . . . 1 . 75 . 2 75 . 28 19 Melee . | . . . . . . . . . . . . . . . . . Projectile 38 | . . . . . . . . 1 . . . . 3 . 15 19 AOE 162 | . . . . . . . . . . 75 . 2 72 . 13 . Terrain Rammed . | . . . . . . . . . . . . . . . . . Walls Destroyed . | . . . . . . . . . . . . . . . . . Machines Disabled . | . . . . . . . . . . . . . . . . . Actions | -11 -10 -10 -9 -9 -9 -8 -8 -8 -8 -8 -7 -6 -5 -4 -4 -3 --------- Run | Yrd Mat Min Mat Min Exi Min Mat Gar Mat Gar Fac Fac Fac Fac Gar Res Total 9455 | 7 814 343 880 31 235 196 539 619 97 629 560 827 998 188 1121 1371 Wait 1456 | . 106 50 72 . . 11 196 7 9 32 15 151 310 1 214 282 Move 7119 | 4 620 288 707 31 223 173 307 547 84 509 510 616 640 166 754 940 Hop 5 | . . . . . . . . . . . . . . . . 5 Pick Up 150 | . 16 2 15 . 3 2 5 13 1 11 9 9 8 3 28 25 Fast Attach . | . . . . . . . . . . . . . . . . . Attach 111 | . 5 1 12 . 3 2 4 2 1 10 8 9 10 2 16 26 Detach 6 | . . . . . . . . . . 2 . . 2 . 1 1 Swap 34 | . 1 . . . . . . 3 . 4 . 10 3 . 4 9 Drop 110 | 3 5 2 9 . 6 1 2 12 1 4 9 9 2 1 19 25 Fire 394 | . 55 . 63 . . 7 24 10 1 51 9 21 22 15 71 45 Melee . | . . . . . . . . . . . . . . . . . Ram 9 | . . . . . . . . . . . . . . . . 9 Kick 8 | . 5 . . . . . . . . . . 2 1 . . . Crush 8 | . 1 . 2 . . . 1 . . . . . . . . 4 Escape Stasis 7 | . . . . . . . . . . 5 . . . . 2 . Rewire 38 | . . . . . . . . 25 . 1 . . . . 12 . Trap . | . . . . . . . . . . . . . . . . . Miscellaneous . | . . . . . . . . . . . . . . . . . Route ------- -11/Scrapyard -10/Materials (discovered 3 exits: *Mat x2 / *Min) -10/Mines -9/Materials (discovered 3 exits: *Mat x2 / [*Min]) -9/Mines -9/Exiles (discovered 2 exits: [*Min x2]) -8/Mines -8/Materials -8/Garrison (discovered 3 exits: *Mat x3) -8/Materials (discovered 4 exits: Fac x3 / Gar) -8/Garrison (discovered 2 exits: *Fac x2) -7/Factory -6/Factory (discovered 4 exits: *Fac x4) -5/Factory (discovered 4 exits: *Fac x4) -4/Factory -4/Garrison (discovered 3 exits: *Res x3) -3/Research History --------- Turn | Location | Event 1 | -11/Scrapyard | Discovered new exit (range 1) 8 | -11/Scrapyard | Entered Materials 181 | -10/Materials | Discovered new exit (range 10) 310 | -10/Materials | Build established: Mutant 694 | -10/Materials | Core integrity fell below 50% 929 | -10/Materials | Discovered new exit (range 11) 976 | -10/Materials | Central database locked down 1130 | -10/Materials | Discovered new exit (range 16) 1333 | -10/Materials | Entered Mines 1341 | -10/Mines | Met a Derelict bent on vengeance 1689 | -10/Mines | Received a Rocket Launcher from a helpful Derelict 1738 | -10/Mines | Learned Materials garrison access intel 1799 | -10/Mines | Discovered new exit (range 6) 1848 | -10/Mines | Entered Materials 1848 | -9/Materials | Evolved 2 slots: Utility x2 2161 | -9/Materials | Discovered new exit (range 4) 2427 | -9/Materials | Discovered new exit (range 15) 2529 | -9/Materials | Build established: Scavenger-Mutant 3218 | -9/Materials | Discovered new exit (range 13) 3267 | -9/Materials | Entered Mines 3309 | -9/Mines | Deemed a non-threat by the Exiles lab entrance 3311 | -9/Mines | Discovered new exit (range 5) 3317 | -9/Mines | Entered Exiles 3343 | -9/Exiles | Discovered new exit (range 15) 3357 | -9/Exiles | Met 8R-AWN 3383 | -9/Exiles | Met EX-HEX 3431 | -9/Exiles | Met EX-BIN 3453 | -9/Exiles | Aligned with FarCom system 3455 | -9/Exiles | Given EX-Vault access code 3480 | -9/Exiles | Build established: Hacker-Mutant 3495 | -9/Exiles | Opened EX-Vault 3504 | -9/Exiles | Found Prototype Device 3505 | -9/Exiles | Identified Cloak of Protection 3508 | -9/Exiles | Found Prototype Device 3509 | -9/Exiles | Identified PSU Rigger 3560 | -9/Exiles | Warned to stay clear of 0b10 Research branches 3611 | -9/Exiles | Met EX-DEC 3666 | -9/Exiles | Discovered new exit (range 14) 3683 | -9/Exiles | Left Exiles lab with Cloak of Protection 3683 | -9/Exiles | Entered Mines 3974 | -8/Mines | Discovered new exit (range 7) 3997 | -8/Mines | Entered Materials 3997 | -8/Materials | Evolved 2 slots: Propulsion x1, Weapon x1 3998 | -8/Materials | Loaded intel: 1 garrison access location 4395 | -8/Materials | Build established: Scavenger-Skirmisher 4733 | -8/Materials | Garrison activated, responded to threat 4793 | -8/Materials | Identified exit to Garrison 4793 | -8/Materials | Entered Garrison 4793 | -8/Garrison | Discovered recently destroyed garrison 4901 | -8/Garrison | Installed Relay Interface Framework 4936 | -8/Garrison | Garrison Relay disabled 5108 | -8/Garrison | Garrison Relay disabled 5375 | -8/Garrison | Discovered new exit (range 11) 5392 | -8/Garrison | Garrison Relay disabled 5574 | -8/Garrison | Discovered new exit (range 9) 5630 | -8/Garrison | Garrison Relay disabled 5670 | -8/Garrison | Learned Materials security intel 5687 | -8/Garrison | Discovered new exit (range 52) 5687 | -8/Garrison | Discovered new exit (range 21) 5687 | -8/Garrison | Discovered new exit (range 79) 5749 | -8/Garrison | Entered Materials 5749 | -8/Materials | Accompanied by 4 allies 5807 | -8/Materials | Identified exit to Factory 5896 | -8/Materials | Identified exit to Garrison 5898 | -8/Materials | Entered Garrison 5898 | -8/Garrison | Accompanied by 4 allies 6128 | -8/Garrison | Triggered checkpoint 6133 | -8/Garrison | Triggered checkpoint 6166 | -8/Garrison | Lost 3 allies 6192 | -8/Garrison | Lost 5 parts (1p3n1u) 6211 | -8/Garrison | Triggered checkpoint 6219 | -8/Garrison | Triggered checkpoint 6240 | -8/Garrison | Destroyed 9 combat bots 6323 | -8/Garrison | Build established: Bothacker-Skirmisher 6384 | -8/Garrison | Discovered exit to Factory (range 15) 6485 | -8/Garrison | Expanded RIF knowledge: Program Shield 6656 | -8/Garrison | Triggered checkpoint 6698 | -8/Garrison | Garrison Relay disabled 6801 | -8/Garrison | Discovered exit to Factory (range 10) 6821 | -8/Garrison | Rescued a captive Derelict 6840 | -8/Garrison | Entered Factory 6840 | -7/Factory | Accompanied by 1 ally 6840 | -7/Factory | Evolved 2 slots: Utility x2 7321 | -7/Factory | Discovered new exit (range 4) 7521 | -7/Factory | Entered another Factory area 7521 | -6/Factory | Accompanied by 1 ally 7521 | -6/Factory | Evolved 2 slots: Utility x2 7544 | -6/Factory | Identified exit to Factory 7834 | -6/Factory | Fabricated Hacking Suite? 8528 | -6/Factory | Entered another Factory area 8528 | -5/Factory | Accompanied by 1 ally 8528 | -5/Factory | Evolved 2 slots: Utility x2 8685 | -5/Factory | Build established: Hacker-Skirmisher 8962 | -5/Factory | Identified exit to Factory 9400 | -5/Factory | Cargo convoy interrupted 9449 | -5/Factory | Lost 4 parts (1u3w) 9715 | -5/Factory | Entered another Factory area 9715 | -4/Factory | Accompanied by 1 ally 9715 | -4/Factory | Evolved 2 slots: Power x1, Propulsion x1 9950 | -4/Factory | Identified exit to Garrison 9950 | -4/Factory | Entered Garrison 9950 | -4/Garrison | Accompanied by 5 allies 10050 | -4/Garrison | Triggered checkpoint 10088 | -4/Garrison | Garrison Relay disabled 10176 | -4/Garrison | Spotted B-86 Titan 10186 | -4/Garrison | Triggered checkpoint 10187 | -4/Garrison | Allies destroyed B-86 Titan 10190 | -4/Garrison | Triggered checkpoint 10228 | -4/Garrison | Triggered checkpoint 10233 | -4/Garrison | Lost 4 allies 10603 | -4/Garrison | Garrison Relay disabled 10766 | -4/Garrison | Discovered new exit (range 3) 10879 | -4/Garrison | Rewired Striker 10886 | -4/Garrison | Rewired Striker 10908 | -4/Garrison | Triggered checkpoint 10909 | -4/Garrison | Build established: Bothacker-Tank 10919 | -4/Garrison | Garrison Relay disabled 11208 | -4/Garrison | Rescued a captive Derelict 11242 | -4/Garrison | Discovered new exit (range 9) 11254 | -4/Garrison | Found embedded Infiltrators 11274 | -4/Garrison | Triggered checkpoint 11325 | -4/Garrison | Garrison Relay disabled 11358 | -4/Garrison | Garrison Relay disabled 11452 | -4/Garrison | Triggered checkpoint 11547 | -4/Garrison | Discovered new exit (range 12) 11562 | -4/Garrison | Expanded RIF knowledge: Robot Detection 11591 | -4/Garrison | Entered Research 11591 | -3/Research | Accompanied by 4 allies 11591 | -3/Research | Evolved 2 slots: Utility x1, Weapon x1 11814 | -3/Research | Repaired Hvy. Treads 11869 | -3/Research | Repaired Imp. Medium Armor Plating 12341 | -3/Research | First assault squad dispatched 12656 | -3/Research | Lost 4 allies 13243 | -3/Research | System corruption reached 10% 13279 | -3/Research | Core integrity fell below 50% 13307 | -3/Research | Lost 10 parts (1n5u4w) 13360 | -3/Research | Core integrity fell below 20% 13382 | -3/Research | Destroyed by S-43 Plague with Heavy Machine Gun Last Messages --------------- 13338_ Triggered Ambush Trap. 13338_ B-74 Champion emerges from a hatch in the floor. 13338_ S-43 Plague emerges from a hatch in the floor. 13345_ Slammed into S-43 Plague. 13345_ Destabilizing: Core damaged (-39). 13350_ Hacking Suite destroyed. 13350_ Acquired Q-thruster. 13354_ System corrupted: Substantial component data lost. 13360_ C-30 ARC bursts open, deploying its payload. 13360_ G-73 Enforcer unfolds itself. 13360_ L-61 Swordsman unfolds itself. 13360_ G-67 Veteran unfolds itself. 13360_ M-36 Artificer unfolds itself. 13360_ Q-thruster destroyed. 13372_ System corrupted: Graphene Brace rejected. Map ----- +----------------------------------------------------+ | ?????????????????????????????????????????????????? | | ?????????????????????? ????????????????????????? | | ?????????????????????? #??????????????????????? | | ###??????????????????# #??????????????????????? | | ?????????????? #??????????????????????? | | ?????????????? #??????????????????????? | | ####?????????????????# #??????????????????????? | | ###??????????????????# #??????????????????????? | | #??????????????????#p #??????????????????????? | | #??????????????????# #??????????????????????? | | #??????????????????+ #??????????????????????? | | #??????????????????#w ##?????????????????????? | | ####?????????????????# T#?????????????????????? | | # #####?????????????# #?????????????????????? | | #???########### #??????????????????????? | | "########### # #??????????????????????? | | / %%%%%/ # #??????????????????????? | | ######## + #??????????????????????? | | # #???# ! # #??????????????????????? | | # #???# # #??????????????????????? | | # ##???# # #??????????????????????? | | [ # #???# ""T"" # #??????????????????????? | | % # #???# """"" # #??????????????????????? | | # ##???########### #??????????????????????? | | ############### # #??????????????????????? | | # + @#??????????????????????? | | % # # #??????????????????????? | | # # #??????????????????????? | | % """# ?# #??????????????????????? | | R"# ]?# #??????????????????????? | | """# ??# #??????????????????????? | | # ==!??# #??????????????????????? | | | # ==???# #??????????????????????? | | !=! # =!???# #??########????????????? | | ! # ????# #? #????????????? | | ###????# #? ! #????????????? | | ####%################# # ! ! #????????????? | | ####+###????# # # #????????????? | | # " #????# + + #????????????? | | # #????# # # #????????????? | | #* #????# # # #????????????? | | +! #????# ?# #? #????????????? | | #/ #????# ?# s#?#########????????????? | | # #????# ??# #??????????????????????? | | # #????# ??# ###############????????? | | # #????# ???# ! h #????????? | | # #????######???# #????????? | | # #?????????????# #????????? | | + ############### #????????? | | # # ## #####+####### ##????????? | +----------------------------------------------------+ Best States ------------- Heat Dissipation 136 Energy Generation 35 Energy Capacity 525 Matter Stores 300 Matter Capacity 300 Sight Range 16 Terrain Scan Density 10 Jamming Range 16 Armor Coverage 225 Weapon Cycling 20 Phase Shifting 5 Evasion (%) 62 Targeting Accuracy 6 Recoil Reduction 4 Kinecelleration 30 Offensive Hacking 44 Defensive Hacking 20 Relay Coupler Types 3 Relay Coupler Value 106 Item Schematics ----------------- Hacking Suite | -9/Materials | Scanalyzed Robot Schematics ------------------ H-55 Commando | -8/Materials | Hacked Fabricated ------------ Hacking Suite | x1 | -6/Factory Alien Tech Used ----------------- None Achievements -------------- None Challenges ------------ None Game ------ Seed HardenedFortressOptics Manual? 0 Play Time 01:43:18 Cumulative 97.7 hours Start 2024.04.22 @ 01:55:22 End 2024.04.22 @ 23:31:50 Sessions 3 Manual Loads 0 Difficulty Rogue Special Mode None Game No. 83 Rogue 83 Adventurer 0 Explorer 0 Win Type - Total 0 Types 0/0/0/0/0/0/0/0/0 Lore% 44 Gallery% 57 Achievement% 35 Wizard Run 0 Options --------- Layout 1 ASCII 0 Keyboard 0 Movement Numpad Keybinds 0 Fullscreen 1 Font 24/Smallcaps Map View 50x35 Zoom Use 1% Tactical HUD 1 Map Filters NONE Filters NONE Steam 1 RUN: c152ea56-c02b-4eb1-9816-48e5d68e60bd